fUST/lending_fUST_20240418
["ID","MTS","AMOUNT","RATE_DAILY","PERIOD"]
[322836138,1713377444570,-500.0,0.00035559,40]
[322836139,1713377444580,-500.0,0.00035559,40]
[322836140,1713377444589,-500.0,0.00035559,40]
[322836142,1713377444599,-500.0,0.00035559,40]
[322836144,1713377444609,-500.0,0.00035559,40]
[322836146,1713377444618,-500.0,0.00035559,40]
[322836147,1713377444628,-500.0,0.00035559,40]
[322836148,1713377444637,-353.03413188,0.00035559,40]
[322836149,1713377444647,-500.0,0.00035559,40]
[322836150,1713377444657,-494.05618992,0.00035559,40]
[322836151,1713377444666,-500.0,0.00035559,40]
[322836152,1713377444675,-500.0,0.00035559,40]
[322836153,1713377444685,-500.0,0.00035559,40]
[322836154,1713377444695,-500.0,0.00035559,40]
[322836155,1713377444704,-500.0,0.00035559,40]
[322836156,1713377444713,-500.0,0.00035559,40]
[322836157,1713377444722,-500.0,0.00035559,40]
[322836158,1713377444732,-500.0,0.00035559,40]
[322836159,1713377444741,-500.0,0.00035559,40]
[322836160,1713377444750,-500.0,0.00035559,40]
[322836161,1713377444760,-155.13649425,0.00035559,40]
[322836162,1713377444769,-275.58233599,0.00035559,40]
[322836163,1713377444781,-500.0,0.00035559,40]
[322836164,1713377444790,-500.0,0.00035559,40]
[322836165,1713377444799,-506.8605399,0.00035559,40]
[322836166,1713377444809,-581.51502194,0.00035559,40]
[322836167,1713377444819,-329.52000698,0.00035559,40]
[322836168,1713377444828,-500.0,0.00035559,40]
[322836169,1713377444838,-500.0,0.00035559,40]
[322836170,1713377444848,-505.2854447,0.00035559,40]
[322836171,1713377444858,-554.31922219,0.00035559,40]
[322836172,1713377444871,-242.76844535,0.00035559,40]
[322836173,1713377444880,-96.94290947,0.00035559,40]
[322836197,1713377447512,-2674.03213898,0.00035459,2]
[322836198,1713377447525,-213.436124,0.00035558,4]
[322836200,1713377447542,-249.0051723,0.00035558,4]
[322836202,1713377447557,-243.0,0.00035559,2]
[322836203,1713377447570,-403.05709053,0.00035559,40]
[322836205,1713377447585,-500.0,0.00035559,40]
[322836208,1713377447597,-500.0,0.00035559,40]
[322836211,1713377447608,-548.35605247,0.00035559,40]
[322836214,1713377447620,-500.0,0.00035559,40]
[322836217,1713377447633,-503.16834457,0.00035559,40]
[322836219,1713377447646,-500.0,0.00035559,40]
[322836220,1713377447658,-515.35439021,0.00035559,40]
[322836221,1713377447671,-591.87,0.00035559,40]
[322836222,1713377447682,-591.87,0.00035559,40]
[322836224,1713377447693,-591.87,0.00035559,40]
[322836226,1713377447703,-591.87,0.00035559,40]
[322836228,1713377447716,-591.87,0.00035559,40]
[322836229,1713377447727,-500.0,0.00035559,40]
[322836231,1713377447738,-591.87,0.00035559,40]
[322836232,1713377447749,-510.64690199,0.00035559,40]
[322836233,1713377447760,-591.87,0.00035559,40]
[322836234,1713377447772,-591.87,0.00035559,40]
[322836235,1713377447786,-591.87,0.00035559,40]
[322836236,1713377447797,-591.87,0.00035559,40]
[322836237,1713377447808,-500.0,0.00035559,40]
[322836238,1713377447819,-591.87,0.00035559,40]
[322836239,1713377447830,-591.87,0.00035559,40]
[322836240,1713377447845,-591.87,0.00035559,40]
[322836241,1713377447857,-502.18320919,0.00035559,40]
[322836242,1713377447868,-591.87,0.00035559,40]
[322836243,1713377447883,-591.87,0.00035559,40]
[322836244,1713377447896,-591.87,0.00035559,40]
[322836245,1713377447907,-591.87,0.00035559,40]
[322836246,1713377447919,-591.87,0.00035559,40]
[322836247,1713377447931,-591.87,0.00035559,40]
[322836248,1713377447944,-500.0,0.00035559,40]
[322836249,1713377447956,-591.87,0.00035559,40]
[322836250,1713377447968,-500.0,0.00035559,40]
[322836251,1713377447979,-591.87,0.00035559,40]
[322836252,1713377447991,-591.87,0.00035559,40]
[322836253,1713377448002,-591.87,0.00035559,40]
[322836254,1713377448014,-500.0,0.00035559,30]
[322836255,1713377448025,-591.93002551,0.00035559,40]
[322836256,1713377448038,-500.0,0.00035559,40]
[322836257,1713377448050,-373.2481886,0.00035559,40]
[322836258,1713377448061,-500.0,0.00035559,40]
[322836259,1713377448072,-500.0,0.00035559,40]
[322836260,1713377448085,-500.0,0.00035559,40]
[322836261,1713377448098,-500.0,0.00035559,40]
[322836262,1713377448111,-500.0,0.00035559,40]
[322836263,1713377448123,-500.0,0.00035559,40]
[322836264,1713377448136,-235.96878579,0.00035559,40]
[322836265,1713377448149,-500.0,0.00035559,40]
[322836266,1713377448161,-500.0,0.00035559,40]
[322836267,1713377448173,-500.0,0.00035559,40]
[322836268,1713377448185,-500.0,0.00035559,40]
[322836269,1713377448197,-254.32324845,0.00035559,40]
[322836270,1713377448209,-500.0,0.00035559,40]
[322836271,1713377448220,-500.0,0.00035559,40]
[322836272,1713377448232,-500.0,0.00035559,40]
[322836273,1713377448243,-500.0,0.00035559,40]
[322836274,1713377448255,-500.0,0.00035559,40]
[322836275,1713377448266,-500.0,0.00035559,40]
[322836276,1713377448281,-500.0,0.00035559,40]
[322836277,1713377448293,-642.54892262,0.00035559,40]
[322836278,1713377448303,-500.0,0.00035559,40]
[322836279,1713377448312,-500.0,0.00035559,40]
[322836280,1713377448426,-500.0,0.00035559,40]
[322836281,1713377448480,-500.0,0.00035559,40]
[322836282,1713377448490,-500.0,0.00035559,40]
[322836283,1713377448500,-500.0,0.00035559,40]
[322836284,1713377448510,-500.0,0.00035559,40]
[322836285,1713377448520,-506.02049622,0.00035559,40]
[322836286,1713377448532,-501.93820584,0.00035559,40]
[322836287,1713377448541,-403.0062088,0.00035559,40]
[322836288,1713377448551,-500.0,0.00035559,40]
[322836289,1713377448560,-500.0,0.00035559,40]
[322836290,1713377448570,-502.0821946,0.00035559,40]
[322836291,1713377448579,-500.0,0.00035559,40]
[322836292,1713377448588,-500.0,0.00035559,30]
[322836293,1713377448598,-505.898112,0.00035559,30]
[322836294,1713377448607,-500.0,0.00035559,30]
[322836295,1713377448616,-500.0,0.00035559,30]
[322836296,1713377448626,-500.0,0.00035559,30]
[322836297,1713377448635,-500.0,0.00035559,30]
[322836298,1713377448644,-500.0,0.00035559,30]
[322836299,1713377448654,-241.12068724,0.00035559,30]
[322836300,1713377448663,-500.0,0.00035559,30]
[322836301,1713377448672,-500.0,0.00035559,30]
[322836302,1713377448682,-500.0,0.00035559,30]
[322836303,1713377448691,-500.0,0.00035559,30]
[322836304,1713377448701,-500.0,0.00035559,30]
[322836305,1713377448710,-584.50173611,0.00035559,30]
[322836306,1713377448719,-500.0,0.00035559,30]
[322836307,1713377448728,-500.0,0.00035559,30]
[322836308,1713377448738,-500.0,0.00035559,30]
[322836309,1713377448747,-500.0,0.00035559,30]
[322836310,1713377448757,-500.0,0.00035559,30]
[322836311,1713377448767,-500.0,0.00035559,30]
[322836312,1713377448776,-500.0,0.00035559,30]
[322836313,1713377448787,-500.0,0.00035559,30]
[322836314,1713377448797,-500.0,0.00035559,30]
[322836315,1713377448806,-500.0,0.00035559,30]
[322836316,1713377448815,-500.0,0.00035559,30]
[322836317,1713377448823,-500.0,0.00035559,30]
[322836318,1713377448832,-500.0,0.00035559,30]
[322836319,1713377448842,-500.0,0.00035559,30]
[322836320,1713377448849,-408.46848877,0.00035559,30]
[322836321,1713377448858,-500.0,0.00035559,30]
[322836322,1713377448865,-501.06503688,0.00035559,30]
[322836323,1713377448874,-500.0,0.00035559,30]
[322836324,1713377448886,-618.54,0.00035559,30]
[322836325,1713377448895,-618.54,0.00035559,30]
[322836326,1713377448904,-618.54,0.00035559,30]
[322836327,1713377448913,-618.54,0.00035559,30]
[322836328,1713377448924,-618.54,0.00035559,30]
[322836329,1713377448933,-618.54,0.00035559,30]
[322836330,1713377448943,-618.54,0.00035559,30]
[322836331,1713377448953,-618.54,0.00035559,30]
[322836332,1713377448965,-618.54,0.00035559,30]
[322836333,1713377448974,-618.54,0.00035559,30]
[322836334,1713377448983,-618.54,0.00035559,30]
[322836335,1713377448992,-618.54,0.00035559,30]
[322836336,1713377449002,-618.54,0.00035559,30]
[322836337,1713377449011,-618.54,0.00035559,30]
[322836338,1713377449020,-618.54,0.00035559,30]
[322836339,1713377449031,-618.54,0.00035559,30]
[322836340,1713377449042,-618.54,0.00035559,30]
[322836341,1713377449052,-618.54,0.00035559,30]
[322836342,1713377449062,-618.54,0.00035559,30]
[322836343,1713377449072,-618.54,0.00035559,30]
[322836344,1713377449081,-618.54,0.00035559,30]
[322836345,1713377449094,-618.54,0.00035559,30]
[322836346,1713377449103,-618.54,0.00035559,30]
[322836347,1713377449113,-618.71076688,0.00035559,30]
[322836348,1713377449122,-502.74587075,0.00035559,30]
[322836349,1713377449131,-730.97,0.00035559,30]
[322836350,1713377449141,-730.97,0.00035559,30]
[322836351,1713377449150,-730.97,0.00035559,30]
[322836352,1713377449161,-501.94626701,0.00035559,30]
[322836353,1713377449170,-730.97,0.00035559,30]
[322836354,1713377449179,-730.97,0.00035559,30]
[322836355,1713377449189,-730.97,0.00035559,30]
[322836356,1713377449199,-500.0,0.00035559,30]
[322836357,1713377449210,-730.97,0.00035559,30]
[322836358,1713377449219,-500.0,0.00035559,30]
[322836359,1713377449229,-730.97,0.00035559,30]
[322836360,1713377449239,-500.0,0.00035559,30]
[322836361,1713377449248,-730.97,0.00035559,30]
[322836362,1713377449258,-500.0,0.00035559,30]
[322836363,1713377449268,-730.97,0.00035559,30]
[322836364,1713377449279,-730.97,0.00035559,30]
[322836365,1713377449288,-500.0,0.00035559,30]
[322836366,1713377449297,-500.0,0.00035559,30]
[322836367,1713377449307,-730.97,0.00035559,30]
[322836368,1713377449316,-500.0,0.00035559,30]
[322836369,1713377449326,-730.97,0.00035559,30]
[322836370,1713377449335,-730.97,0.00035559,30]
[322836371,1713377449344,-500.0,0.00035559,30]
[322836372,1713377449354,-730.97,0.00035559,30]
[322836373,1713377449363,-500.0,0.00035559,30]
[322836374,1713377449373,-730.97,0.00035559,30]
[322836375,1713377449383,-730.97,0.00035559,30]
[322836376,1713377449392,-500.0,0.00035559,30]
[322836377,1713377449401,-730.97,0.00035559,30]
[322836378,1713377449411,-500.0,0.00035559,30]
[322836379,1713377449420,-730.97,0.00035559,30]
[322836380,1713377449430,-500.0,0.00035559,30]
[322836381,1713377449439,-730.97,0.00035559,30]
[322836382,1713377449449,-500.0,0.00035559,30]
[322836383,1713377449460,-500.0,0.00035559,30]
[322836384,1713377449471,-500.0,0.00035559,30]
[322836385,1713377449480,-500.0,0.00035559,30]
[322836386,1713377449489,-501.28054168,0.00035559,30]
[322836387,1713377449498,-217.05998964,0.00035559,30]
[322836388,1713377449508,-500.0,0.00035559,30]
[322836389,1713377449519,-500.0,0.00035559,30]
[322836390,1713377449530,-500.0,0.00035559,30]
[322836391,1713377449540,-500.0,0.00035559,30]
[322836392,1713377449549,-730.97,0.00035559,30]
[322836393,1713377449561,-500.0,0.00035559,30]
[322836394,1713377449570,-730.97,0.00035559,30]
[322836395,1713377449579,-500.0,0.00035559,30]
[322836396,1713377449589,-730.97,0.00035559,30]
[322836397,1713377449598,-500.0,0.00035559,30]
[322836398,1713377449608,-730.9795338,0.00035559,30]
[322836399,1713377449618,-500.0,0.00035559,30]
[322836400,1713377449628,-500.0,0.00035559,30]
[322836401,1713377449637,-500.0,0.00035559,30]
[322836402,1713377449647,-500.0,0.00035559,30]
[322836403,1713377449657,-500.0,0.00035559,30]
[322836404,1713377449666,-500.0,0.00035559,30]
[322836405,1713377449677,-500.0,0.00035559,30]
[322836406,1713377449686,-500.0,0.00035559,30]
[322836407,1713377449696,-172.07350399,0.00035559,30]
[322836408,1713377449706,-500.0,0.00035559,30]
[322836409,1713377449716,-500.0,0.00035559,30]
[322836410,1713377449726,-500.0,0.00035559,30]
[322836411,1713377449735,-500.0,0.00035559,30]
[322836412,1713377449745,-500.0,0.00035559,30]
[322836413,1713377449754,-500.0,0.00035559,30]
[322836414,1713377449765,-500.0,0.00035559,30]
[322836415,1713377449777,-501.29566332,0.00035559,30]
[322836416,1713377449788,-500.0,0.00035559,30]
[322836417,1713377449797,-500.0,0.00035559,30]
[322836418,1713377449807,-500.0,0.00035559,30]
[322836419,1713377449816,-500.0,0.00035559,30]
[322836420,1713377449826,-500.0,0.00035559,30]
[322836421,1713377449835,-500.0,0.00035559,30]
[322836422,1713377449848,-500.0,0.00035559,30]
[322836423,1713377449858,-401.82188482,0.00035559,30]
[322836424,1713377449868,-500.0,0.00035559,30]
[322836425,1713377449878,-286.32002836,0.00035559,30]
[322836426,1713377449890,-563.47899275,0.00035559,30]
[322836427,1713377449901,-500.0,0.00035559,30]
[322836428,1713377449910,-500.0,0.00035559,30]
[322836429,1713377449920,-598.67369605,0.00035559,30]
[322836430,1713377449931,-500.0,0.00035559,30]
[322836431,1713377449940,-500.0,0.00035559,30]
[322836432,1713377449949,-500.0,0.00035559,30]
[322836433,1713377449958,-307.74567664,0.00035559,30]
[322836434,1713377449967,-500.0,0.00035559,30]
[322836435,1713377449977,-500.0,0.00035559,30]
[322836436,1713377449986,-500.0,0.00035559,30]
[322836437,1713377449995,-500.0,0.00035559,30]
[322836438,1713377450004,-500.0,0.00035559,30]
[322836439,1713377450013,-267.29931637,0.00035559,30]
[322836440,1713377450023,-500.0,0.00035559,30]
[322836441,1713377450035,-500.0,0.00035559,30]
[322836442,1713377450044,-599.06511155,0.00035559,30]
[322836443,1713377450053,-500.0,0.00035559,30]
[322836444,1713377450065,-502.10692875,0.00035559,30]
[322836445,1713377450075,-500.0,0.00035559,30]
[322836446,1713377450085,-500.0,0.00035559,30]
[322836447,1713377450096,-505.39277002,0.00035559,30]
[322836448,1713377450107,-500.0,0.00035559,30]
[322836449,1713377450118,-500.0,0.00035559,30]
[322836450,1713377450128,-500.0,0.00035559,30]
[322836451,1713377450139,-500.0,0.00035559,30]
[322836452,1713377450150,-500.0,0.00035559,30]
[322836453,1713377450160,-500.0,0.00035559,30]
[322836454,1713377450170,-500.0,0.00035559,30]
[322836455,1713377450180,-500.0,0.00035559,30]
[322836456,1713377450190,-500.0,0.00035559,30]
[322836457,1713377450200,-500.0,0.00035559,30]
[322836458,1713377450210,-500.0,0.00035559,30]
[322836459,1713377450220,-500.0,0.00035559,30]
[322836460,1713377450230,-500.0,0.00035559,30]
[322836461,1713377450240,-197.50935327,0.00035559,30]
[322836462,1713377450249,-228.12185428,0.00035559,30]
[322836463,1713377450259,-500.0,0.00035559,30]
[322836464,1713377450269,-500.0,0.00035559,30]
[322836465,1713377450281,-500.0,0.00035559,30]
[322836466,1713377450291,-500.0,0.00035559,30]
[322836467,1713377450302,-500.0,0.00035559,30]
[322836468,1713377450312,-500.0,0.00035559,30]
[322836469,1713377450323,-500.0,0.00035559,30]
[322836470,1713377450333,-500.0,0.00035559,30]
[322836471,1713377450344,-820.86,0.00035559,30]
[322836472,1713377450354,-500.0,0.00035559,30]
[322836473,1713377450364,-820.86,0.00035559,30]
[322836474,1713377450374,-500.0,0.00035559,30]
[322836475,1713377450384,-820.86,0.00035559,30]
[322836476,1713377450394,-500.0,0.00035559,30]
[322836477,1713377450403,-820.86,0.00035559,30]
[322836478,1713377450413,-500.0,0.00035559,30]
[322836479,1713377450423,-820.86,0.00035559,30]
[322836480,1713377450433,-354.56269158,0.00035559,30]
[322836481,1713377450442,-820.86,0.00035559,30]
[322836482,1713377450453,-820.86,0.00035559,30]
[322836483,1713377450463,-820.86,0.00035559,30]
[322836484,1713377450473,-820.86,0.00035559,30]
[322836485,1713377450482,-820.86,0.00035559,30]
[322836486,1713377450492,-820.86,0.00035559,30]
[322836487,1713377450501,-820.86,0.00035559,30]
[322836488,1713377450511,-820.86,0.00035559,30]
[322836489,1713377450521,-820.86,0.00035559,30]
[322836490,1713377450532,-500.0,0.00035559,30]
[322836491,1713377450543,-820.86,0.00035559,30]
[322836492,1713377450553,-820.86,0.00035559,30]
[322836493,1713377450564,-500.0,0.00035559,30]
[322836494,1713377450574,-820.86,0.00035559,30]
[322836495,1713377450671,-500.0,0.00035559,30]
[322836496,1713377450681,-820.86,0.00035559,30]
[322836497,1713377450690,-500.0,0.00035559,30]
[322836498,1713377450699,-820.86,0.00035559,30]
[322836499,1713377450709,-500.0,0.00035559,30]
[322836500,1713377450719,-820.86,0.00035559,30]
[322836501,1713377450728,-500.0,0.00035559,30]
[322836502,1713377450737,-820.86,0.00035559,30]
[322836503,1713377450746,-500.0,0.00035559,30]
[322836504,1713377450756,-820.86,0.00035559,30]
[322836505,1713377450766,-820.86,0.00035559,30]
[322836506,1713377450775,-500.0,0.00035559,30]
[322836507,1713377450786,-821.06794275,0.00035559,30]
[322836508,1713377450795,-450.32362427,0.00035559,30]
[322836521,1713378548221,-158.857458,0.00026346,2]
[322836522,1713378548242,-243.24834116,0.00026347,2]
[322836523,1713378548265,-2125.76560283,0.00026347,2]
[322836524,1713378548287,-523.80732363,0.00026348,4]
[322836525,1713378548308,-188.96976676,0.00026348,2]
[322836526,1713378548330,-688.59429255,0.00026349,2]
[322836527,1713378548350,-156.84586358,0.00026349,2]
[322836528,1713378548370,-937.89373734,0.0002635,2]
[322836529,1713378548390,-300.0,0.00026351,2]
[322836530,1713378548411,-300.0,0.00026351,2]
[322836531,1713378548431,-521.03498526,0.00026351,2]
[322836532,1713378548451,-354.39971412,0.00026351,2]
[322836533,1713378548470,-467.87279548,0.00026351,2]
[322836534,1713378548490,-4160.59811507,0.00026364,2]
[322836535,1713378548509,-168.397382,0.00026372,2]
[322836536,1713378548528,-607.33413395,0.00026598,2]
[322836537,1713378548549,-14582.5779964,0.00026628,2]
[322836538,1713378548572,-525.70167167,0.000269,3]
[322836539,1713378548592,-332.07459253,0.00027394,2]
[322836540,1713378548611,-8716.49175574,0.00027395,2]
[322836541,1713378548630,-169.604126,0.00027397,2]
[322836542,1713378548650,-1000.0,0.00027397,2]
[322836543,1713378548670,-166.666666,0.00027397,2]
[322836544,1713378548690,-489.344437,0.00027397,2]
[322836545,1713378548709,-169.570511,0.00027725,2]
[322836546,1713378548729,-2000.0,0.00027898,2]
[322836547,1713378548750,-1380.55315874,0.00027996,2]
[322836548,1713378548771,-620.17955664,0.00027997,2]
[322836549,1713378548792,-500.0,0.00027997,2]
[322836550,1713378548816,-375.41455169,0.00027997,2]
[322836551,1713378548836,-500.0,0.00027997,2]
[322836552,1713378548856,-500.0,0.00027997,2]
[322836553,1713378548877,-500.0,0.00027997,2]
[322836554,1713378549024,-246.45806658,0.00027997,2]
[322836555,1713378549044,-525.74547902,0.00027998,2]
[322836556,1713378549066,-602.61216035,0.00027998,2]
[322836557,1713378549086,-1875.79814985,0.00027998,2]
[322836558,1713378549106,-1310.15475715,0.00027998,2]
[322836559,1713378549126,-241.20667916,0.00027998,2]
[322836560,1713378549146,-351.3027513,0.00027998,2]
[322836561,1713378549165,-470.72269089,0.00027998,2]
[322836562,1713378549185,-62840.27305816,0.00027998,2]
[322836563,1713378549205,-211.83113783,0.00027998,2]
[322836564,1713378549229,-295.6041069,0.00027998,2]
[322836565,1713378549248,-269.41883597,0.00027998,2]
[322836566,1713378549268,-80000.0,0.00028,2]
[322836567,1713378549288,-166.666666,0.00028038,2]
[322836568,1713378549307,-166.666666,0.00028679,2]
[322836569,1713378549329,-417.0,0.00028837,2]
[322836570,1713378549349,-420.0,0.00028987,2]
[322836571,1713378549368,-5000.0,0.00029,2]
[322836572,1713378549387,-166.666666,0.00029321,2]
[322836573,1713378549407,-498.86134078,0.000299,2]
[322836574,1713378549429,-498.8613407,0.000299,2]
[322836575,1713378549449,-498.8613407,0.000299,2]
[322836576,1713378549469,-498.8613407,0.000299,2]
[322836577,1713378549488,-166.666666,0.00029962,2]
[322836578,1713378549508,-155.28288805,0.0003,4]
[322836579,1713378549527,-258.39586582,0.0003,4]
[322836580,1713378549547,-185.0,0.0003,2]
[322836581,1713378549569,-166.666666,0.00030603,2]
[322836582,1713378549588,-320.4553623,0.000308,10]
[322836583,1713378549611,-620.04668482,0.0003124,2]
[322836584,1713378549632,-417.0,0.00031837,2]
[322836585,1713378549653,-46.20425542,0.00031885,2]
[322836628,1713378637981,-2263.45241771,0.000259,2]
[322836629,1713378637990,-4101.76896859,0.00027996,2]
[322836630,1713378638000,-417.0,0.00028837,2]
[322836631,1713378638009,-185.0960797,0.00029677,2]
[322836632,1713378638019,-332.07459253,0.00029898,2]
[322836633,1713378638028,-210.86393451,0.00029898,2]
[322836634,1713378638038,-688.59429255,0.00029898,2]
[322836635,1713378638047,-158.857458,0.00029898,2]
[322836636,1713378638056,-346.26972668,0.00029899,2]
[322836637,1713378638065,-300.0,0.00029899,2]
[322836638,1713378638074,-498.8613407,0.000299,2]
[322836639,1713378638083,-498.8613407,0.000299,2]
[322836640,1713378638091,-498.8613407,0.000299,2]
[322836641,1713378638101,-498.8613407,0.000299,2]
[322836642,1713378638110,-498.8613407,0.000299,2]
[322836643,1713378638119,-498.8613407,0.000299,2]
[322836644,1713378638134,-498.8613407,0.000299,2]
[322836645,1713378638143,-320.4553623,0.000308,10]
[322836646,1713378638152,-2263.45241771,0.000309,2]
[322836647,1713378638161,-417.0,0.00031837,2]
[322836648,1713378638171,-249.60645184,0.00031883,2]
[322836649,1713378638180,-80000.0,0.00031884,4]
[322836650,1713378638189,-500.0,0.00031884,2]
[322836651,1713378638198,-332.41435125,0.00031884,2]
[322836652,1713378638207,-191.56401133,0.00031884,2]
[322836653,1713378638217,-500.0,0.00031884,2]
[322836654,1713378638226,-500.0,0.00031884,2]
[322836655,1713378638235,-500.0,0.00031884,2]
[322836656,1713378638245,-500.0,0.00031884,2]
[322836657,1713378638259,-500.0,0.00031884,2]
[322836658,1713378638269,-500.0,0.00031884,2]
[322836659,1713378638279,-500.0,0.00031884,2]
[322836660,1713378638289,-500.0,0.00031884,2]
[322836661,1713378638299,-500.0,0.00031884,2]
[322836662,1713378638308,-500.0,0.00031884,2]
[322836663,1713378638317,-500.0,0.00031884,2]
[322836664,1713378638327,-396.9516449,0.00031884,2]
[322836665,1713378638336,-500.0,0.00031884,2]
[322836666,1713378638348,-500.0,0.00031884,2]
[322836667,1713378638358,-500.0,0.00031884,2]
[322836668,1713378638367,-500.0,0.00031884,2]
[322836669,1713378638382,-500.0,0.00031884,2]
[322836670,1713378638391,-161998.4623011,0.00031885,30]
[322836671,1713378638400,-4848.21770199,0.00031885,5]
[322836672,1713378638410,-1014.98909932,0.00031885,4]
[322836673,1713378638419,-154.84515485,0.00031885,4]
[322836674,1713378638428,-4114.8754052,0.00031885,2]
[322836675,1713378638437,-5000.0,0.00032,2]
[322836676,1713378638447,-191.18536531,0.00032,4]
[322836677,1713378638457,-1351.51924404,0.00032003,4]
[322836678,1713378638466,-620.00233424,0.00032802,2]
[322836679,1713378638476,-420.0,0.00032889,2]
[322836680,1713378638485,-5200.0,0.000329,9]
[322836681,1713378638494,-188.93614172,0.00032998,2]
[322836682,1713378638504,-351.64757915,0.00032998,4]
[322836683,1713378638513,-370.24786772,0.00032998,4]
[322836684,1713378638522,-703.48097664,0.00032998,4]
[322836685,1713378638531,-156.10501473,0.00032998,4]
[322836686,1713378638540,-1942.29276709,0.00032998,4]
[322836687,1713378638550,-448.27009146,0.00032998,4]
[322836688,1713378638559,-5000.0,0.00032998,4]
[322836689,1713378638568,-1934.55003292,0.00032998,4]
[322836690,1713378638578,-216.0,0.00032999,2]
[322836691,1713378638587,-52430.50068648,0.00033,5]
[322836692,1713378638597,-489.344437,0.00033165,2]
[322836693,1713378638606,-150.84915085,0.00033571,2]
[322836694,1713378638615,-250.24063936,0.00033571,2]
[322836695,1713378638628,-2000.0,0.000337,7]
[322836696,1713378638640,-525.70167166,0.00033806,6]
[322836697,1713378638650,-156.70334319,0.000339,2]
[322836698,1713378638659,-7324.60420657,0.00033998,2]
[322836699,1713378638668,-465.62426375,0.00034,4]
[322836700,1713378638677,-214713.11311471,0.00034,60]
[322836701,1713378638687,-301.6983017,0.00034135,4]
[322836702,1713378638696,-1501.899039,0.000343,18]
[322836703,1713378638705,-3803.31008415,0.000346,2]
[322836704,1713378638714,-412.8252268,0.00034603,2]
[322836705,1713378638723,-2000.0,0.000347,8]
[322836706,1713378638733,-603.3966034,0.00034708,7]
[322836707,1713378638742,-153.0,0.0003474,2]
[322836708,1713378638752,-153.0,0.0003474,2]
[322836709,1713378638761,-153.0,0.0003474,2]
[322836710,1713378638770,-153.0,0.0003474,2]
[322836711,1713378638780,-153.0,0.0003474,2]
[322836712,1713378638789,-153.0,0.0003474,2]
[322836713,1713378638798,-153.0,0.0003474,2]
[322836714,1713378638808,-153.0,0.0003474,2]
[322836715,1713378638818,-1000.0,0.000348,18]
[322836716,1713378638827,-417.0,0.00034837,2]
[322836717,1713378638836,-150.95011599,0.00034999,2]
[322836718,1713378638846,-41485.07672256,0.00035,30]
[322836719,1713378638859,-3578.49424654,0.00035,30]
[322836731,1713378639997,-6523.66126937,0.00035,30]
[322836733,1713378640008,-853.2124065,0.00035,2]
[322836735,1713378640019,-154.82968734,0.00035,4]
[322836736,1713378640028,-3346.88038665,0.00035,4]
[322836737,1713378640117,-150.66372662,0.00035,4]
[322836812,1713378643280,-144.78562146,0.00035,4]
[322836813,1713378643293,-500.0,0.00035,4]
[322836892,1713379651164,-332.07459253,0.00027368,2]
[322836893,1713379651186,-688.59429255,0.00027369,2]
[322836894,1713379651206,-158.857458,0.0002737,2]
[322836895,1713379651226,-194.582521,0.00027397,2]
[322836896,1713379651246,-353.507292,0.00027397,2]
[322836897,1713379651265,-320.4553623,0.000308,10]
[322836898,1713379651419,-417.0,0.00030967,2]